bitfinex-derivatives/quotes_SOLF0:USTF0_20250202
["timestamp","ask_amount","ask_price","bid_price","bid_amount"]
[1738529099345,1.4614,203.97,203.8,40.5563245]
[1738529099544,0.03132796,203.91,203.87,0.03576373]
[1738529100042,0.03132796,203.91,203.81,80.56830382]
[1738529100442,40.5563245,203.89,203.81,75.76730382]
[1738529100646,4.22,203.9,203.81,75.76730382]
[1738529100647,4.9073,203.83,203.81,75.76730382]
[1738529100848,4.22,203.9,203.72,172.75442327]
[1738529101346,0.03311457,203.83,203.79,0.03356953]
[1738529101546,4.9078,203.81,203.79,0.03356953]
[1738529102548,0.03311457,203.83,203.71,19.12189889]
[1738529102749,4.9091,203.76,203.71,19.12189889]
[1738529103449,4.9091,203.76,203.68,61.26982339]
[1738529103839,0.03315304,203.74,203.7,0.03201163]
[1738529104248,0.03315304,203.74,203.71,4.9101]
[1738529104449,0.03315304,203.74,203.7,0.03201163]
[1738529104643,34.43491146,203.81,203.7,0.03201163]
[1738529104849,40.5563245,203.77,203.69,19.12189889]
[1738529105152,40.51476126,203.77,203.69,9.51219889]
[1738529105342,4.9093,203.75,203.69,9.51219889]
[1738529105647,4.22,203.78,203.61,157.61711111]
[1738529105845,4.9101,203.71,203.7,3.622e-05]
[1738529106953,40.59034637,203.74,203.61,157.61711111]
[1738529107148,40.5563245,203.69,203.53,4.9142]
[1738529107354,40.5563245,203.65,203.52,3.1014]
[1738529108253,4.9135,203.57,203.56,0.03445965]
[1738529108855,4.9154,203.5,203.41,1.5187]
[1738529109049,40.5563245,203.57,203.41,1.5187]
[1738529109752,40.5563245,203.61,203.41,1.5187]
[1738529109956,40.5563245,203.55,203.41,1.5187]
[1738529110151,0.03132656,203.53,203.49,0.03374404]
[1738529110554,4.9164,203.45,203.39,132.19809877]
[1738529110895,4.22,203.54,203.39,132.19809877]
[1738529111056,4.9172,203.42,203.39,132.19809877]
[1738529111350,40.5563245,203.51,203.39,132.19809877]
[1738529111552,4.22,203.54,203.42,4.9171]
[1738529111857,0.03491006,203.47,203.43,0.03319751]
[1738529113454,4.9164,203.45,203.43,0.03319751]
[1738529114157,4.9164,203.45,203.32,103.6294]
[1738529114158,1.5102,203.46,203.32,98.7101]
[1738529114356,0.03491006,203.47,203.33,1.496]
[1738529114557,40.5563245,203.51,203.33,1.496]
[1738529114858,4.9161,203.47,203.39,4.9177]
[1738529115058,40.5563245,203.55,203.37,40.5563245]
[1738529115261,0.03693339,203.45,203.41,0.03667799]
[1738529115553,4.9162,203.46,203.39,4.9176]
[1738529115758,0.03711184,203.45,203.41,0.03543588]
[1738529116157,40.5563245,203.51,203.33,42.0523245]
[1738529116357,0.03304455,203.45,203.41,0.03644171]
[1738529116554,0.03304455,203.45,203.32,97.22]
[1738529116954,1.4563,203.46,203.32,97.22]
[1738529117960,0.0313275,203.41,203.37,0.03136549]
[1738529119576,4.9487275,203.41,203.37,0.03136549]
[1738529119754,0.0313275,203.41,203.37,0.03136549]
[1738529119960,1.4563,203.46,203.37,0.03136549]
[1738529120252,4.9169,203.43,203.37,4.94956549]
[1738529121368,0.03759549,203.42,203.37,4.94956549]
[1738529121765,0.03759549,203.42,203.38,4.918]
[1738529122265,0.03759549,203.42,203.41,4.9174]
[1738529122460,1.4443,203.55,203.39,40.73810905]
[1738529122660,1.475,203.6,203.44,40.73810905]
[1738529122866,1.475,203.6,203.54,4.9142]
[1738529123067,1.475,203.6,203.44,40.73810905]
[1738529123363,1.475,203.6,203.48,40.73810905]
[1738529123567,40.73810905,203.73,203.52,40.73810905]
[1738529123768,4.9102,203.71,203.57,40.73810905]
[1738529123969,1.475,203.72,203.57,40.73810905]
[1738529124171,0.03356288,203.65,203.57,40.73810905]
[1738529124369,6.288e-05,203.65,203.63,4.912]
[1738529124570,1.5411,203.78,203.62,0.03237496]
[1738529124771,4.9097,203.73,203.61,40.73810905]
[1738529125070,40.73810905,203.74,203.54,98.8274]
[1738529125264,1.475,203.72,203.54,98.8274]
[1738529125463,4.9117,203.65,203.54,103.7414]
[1738529125661,4.9117,203.65,203.54,98.8274]
[1738529125860,0.03484414,203.65,203.61,0.03397706]
[1738529126971,0.03484414,203.65,203.62,4.9121]
[1738529127267,0.03484414,203.65,203.61,0.03397706]
[1738529127668,4.9122,203.63,203.61,0.03397706]
[1738529127868,4.22,203.64,203.45,42.25360905]
[1738529128074,40.73810905,203.62,203.46,1.5718]
[1738529128268,40.73810905,203.62,203.49,4.9154]
[1738529128865,1.5045,203.64,203.48,40.73810905]
[1738529129069,40.73810905,203.7,203.52,40.73810905]
[1738529129266,2.467e-05,203.58,203.56,40.73810905]
[1738529129467,40.73810905,203.78,203.56,40.73810905]
[1738529129672,0.90051537,203.77,203.6,40.73810905]
[1738529129872,0.90051537,203.77,203.57,4.5769]
[1738529130173,40.73810905,203.74,203.57,4.5769]
[1738529130575,40.73810905,203.74,203.61,4.9123]
[1738529130871,0.03741557,203.68,203.63,0.03377587]
[1738529131172,0.03741557,203.68,203.64,4.9117]
[1738529132172,43.69100905,203.82,203.63,40.77188492]
[1738529132576,4.9083,203.79,203.63,40.73810905]
[1738529132777,2.9529,203.82,203.7,4.9103]
[1738529133173,1.4563,203.81,203.7,4.9103]
[1738529133371,4.9081,203.8,203.74,0.03271136]
[1738529133576,0.03348238,203.78,203.74,0.03271136]
[1738529134275,40.77159143,203.78,203.6,97.28]
[1738529134504,40.73810905,203.74,203.59,80.52488521]
[1738529134673,40.73810905,203.7,203.59,80.52488521]
[1738529134882,40.73810905,203.66,203.59,80.52488521]
[1738529135075,4.9128,203.6,203.58,80.52488521]
[1738529135975,4.9128,203.6,203.58,78.12148521]
[1738529136187,4.9128,203.6,203.58,34.13299657]
[1738529136484,4.9133,203.58,203.57,124.14841466]
[1738529136674,45.65140905,203.58,203.57,124.14841466]
[1738529137079,45.65140905,203.58,203.57,0.03751589]
[1738529137575,0.03711157,203.61,203.57,0.03751589]
[1738529137983,4.9131,203.59,203.57,0.03751589]
[1738529138181,0.03711157,203.61,203.57,0.03751589]
[1738529139179,4.9131,203.59,203.57,0.03751589]
[1738529139984,40.73810905,203.58,203.57,0.03751589]
[1738529140780,45.65140905,203.58,203.57,0.03751589]
[1738529141890,40.73810905,203.58,203.34,205.98573252]
[1738529142078,40.73810905,203.5,203.38,3.0846]
[1738529142487,4.9164,203.45,203.38,8.0025]
[1738529142684,40.73810905,203.5,203.38,3.0846]
[1738529143191,0.03589543,203.46,203.42,0.030941]
[1738529143684,4.9167,203.44,203.42,0.030941]
[1738529143890,0.03589543,203.46,203.42,0.030941]
[1738529144390,4.95209543,203.46,203.42,0.030941]
[1738529144689,0.03589543,203.46,203.42,0.030941]
[1738529145390,4.22,203.45,203.42,0.030941]
[1738529145788,4.9169,203.43,203.42,0.030941]
[1738529145982,4.22,203.45,203.42,0.030941]
[1738529146482,0.03589543,203.46,203.42,0.030941]
[1738529146689,44.95810905,203.59,203.42,0.030941]
[1738529146990,40.73810905,203.59,203.4,40.73810905]
[1738529147191,40.73810905,203.59,203.41,3.0729]
[1738529147393,4.22,203.61,203.49,4.9152]
[1738529147590,4.22,203.61,203.44,40.73810905]
[1738529148092,0.03476532,203.57,203.53,0.03167088]
[1738529148496,0.03476532,203.57,203.55,4.9139]
[1738529148686,4.912,203.64,203.53,0.03167088]
[1738529148882,4.22,203.66,203.53,0.03167088]
[1738529149083,4.9123,203.62,203.53,0.03167088]
[1738529149286,4.22,203.66,203.48,40.73810905]
[1738529149688,4.22,203.66,203.41,3.0729]
[1738529149894,0.03774886,203.59,203.55,0.03772362]
[1738529150096,40.77585791,203.59,203.55,0.03772362]
[1738529150296,4.9138,203.56,203.55,0.03772362]
[1738529150494,40.77585791,203.59,203.55,0.03772362]
[1738529150796,4.9135,203.57,203.55,0.03772362]
[1738529151693,40.77585791,203.59,203.55,0.03772362]
[1738529151898,0.03774886,203.59,203.55,0.03772362]
[1738529152397,4.9133,203.58,203.55,0.03772362]
[1738529152599,40.77585791,203.59,203.55,0.03772362]
[1738529153799,4.9136,203.57,203.55,0.03772362]
[1738529154401,4.95084886,203.59,203.55,0.03772362]
[1738529154898,0.03774886,203.59,203.55,0.03772362]
[1738529155098,4.9137,203.56,203.55,0.03772362]
[1738529157100,4.9134,203.58,203.55,0.03772362]
[1738529157399,0.03774886,203.59,203.55,0.03772362]
[1738529157992,0.03774886,203.59,203.55,4.95162362]
[1738529158193,40.77585791,203.59,203.55,0.03772362]
[1738529158391,40.77585791,203.59,203.42,1.5567]
[1738529158592,40.73810905,203.54,203.42,1.5567]
[1738529158792,40.73810905,203.5,203.42,1.5567]
[1738529159198,4.9157,203.48,203.42,1.5567]
[1738529159392,40.73810905,203.5,203.44,4.9166]
[1738529159604,0.03656868,203.47,203.43,0.03548296]
[1738529160694,0.03656868,203.47,203.44,4.9166]
[1738529161699,4.9162,203.46,203.43,0.03548296]
[1738529161900,0.03656868,203.47,203.43,0.03548296]
[1738529162204,4.9166,203.44,203.43,0.03548296]
[1738529162700,4.9166,203.44,203.34,1.5208]
[1738529162894,40.73810905,203.42,203.29,82.06881709]
[1738529163300,40.73810905,203.38,203.29,82.06881709]
[1738529164006,40.73810905,203.38,203.29,80.54061709]
[1738529164007,4.9198,203.31,203.29,80.54061709]
[1738529164705,40.73810905,203.34,203.28,0.03644975]
[1738529165196,0.03309577,203.33,203.28,0.03644975]
[1738529165401,4.9201,203.3,203.28,0.03644975]
[1738529165704,0.03309577,203.33,203.28,0.03644975]
[1738529166215,4.9201,203.3,203.28,0.03644975]
[1738529166601,45.65820905,203.3,203.28,0.03644975]
[1738529166904,45.65820905,203.3,203.28,4.975e-05]
[1738529167402,40.73810905,203.29,203.06,23.44164117]
[1738529167698,40.73810905,203.19,203.07,4.4992]
[1738529167902,4.22,203.18,203.07,4.4992]
[1738529168498,4.924,203.14,203.1,0.03725962]
[1738529168699,0.03431198,203.15,203.1,0.03725962]
[1738529170298,40.73810905,203.23,203.1,0.03725962]
[1738529170504,40.73810905,203.23,203.07,45.23730905]
[1738529170708,4.9222,203.21,203.12,4.9243]
[1738529171007,40.73810905,203.23,203.07,4.4992]
[1738529171304,4.9241,203.14,203.07,4.4992]
[1738529171509,0.03219064,203.17,203.13,0.03355099]
[1738529171703,40.73810905,203.18,203.07,4.4992]
[1738529171905,0.03105972,203.17,203.13,0.03612606]
[1738529172305,4.9247,203.11,203.02,4.9267]
[1738529172506,40.73810905,203.06,202.96,4.4181]
[1738529173308,40.73810905,203.06,202.9,80.54061709]
[1738529173602,40.73810905,203.02,202.99,0.03183131]
[1738529173803,40.73810905,203.02,202.91,2.9733]
[1738529174110,0.0762,203.16,202.91,1.4483]
[1738529174111,40.73810905,202.98,202.91,1.4483]
[1738529174310,44.95810905,203.02,202.94,0.03658737]
[1738529174511,0.03689051,202.97,202.94,0.03658737]
[1738529174702,0.03689051,202.97,202.91,1.4483]
[1738529174905,0.03689051,202.97,202.93,0.03225469]
[1738529175707,0.03689051,202.97,202.93,5.469e-05]
[1738529175924,0.03689051,202.97,202.8,4.9321]
[1738529175925,4.93,202.89,202.8,4.9321]
[1738529176118,40.73810905,202.9,202.79,80.54061709]
[1738529176507,4.22,202.92,202.79,80.54061709]
[1738529177210,0.0343916,202.88,202.83,0.03644298]
[1738529178302,4.931,202.85,202.83,0.03644298]
[1738529178612,40.73810905,202.86,202.83,0.03644298]
[1738529179705,4.9306,202.87,202.83,0.03644298]
[1738529179913,0.0343916,202.88,202.83,0.03644298]
[1738529180909,4.9305,202.87,202.83,0.03644298]
[1738529181114,0.0343916,202.88,202.83,0.03644298]
[1738529183210,40.73810905,202.87,202.83,0.03644298]
[1738529183617,0.0343916,202.88,202.83,0.03644298]
[1738529183816,4.22,202.94,202.83,0.03644298]
[1738529184416,44.95810905,202.94,202.83,0.03644298]
[1738529184615,40.73810905,202.9,202.83,0.03644298]
[1738529185017,4.9309,202.86,202.83,0.03644298]
[1738529185324,0.03127095,202.89,202.83,0.03644298]
[1738529187232,0.03127095,202.89,202.86,4.9307]
[1738529187819,0.03127095,202.89,202.85,4.9309]
[1738529188025,0.03127095,202.89,202.83,0.03644298]
[1738529188227,40.73810905,202.86,202.83,0.03644298]
[1738529188525,4.9312,202.84,202.83,0.03644298]
[1738529189623,4.22,202.88,202.83,0.03644298]
[1738529189826,0.03127095,202.89,202.83,0.03644298]
[1738529190527,0.03127095,202.89,202.85,4.9309]
[1738529190729,0.03127095,202.89,202.84,1.4629]
[1738529191229,0.03127095,202.89,202.83,0.03644298]
[1738529191827,4.9312,202.84,202.83,0.03644298]
[1738529192835,9.1512,202.84,202.83,4.298e-05]
[1738529194723,4.9309,202.86,202.83,4.298e-05]
[1738529195031,0.03127095,202.89,202.83,4.298e-05]
[1738529195221,40.73810905,202.87,202.83,4.298e-05]
[1738529195630,0.03127095,202.89,202.83,4.298e-05]
[1738529195827,4.9312,202.85,202.83,4.298e-05]
[1738529196026,0.03127095,202.89,202.83,4.298e-05]
[1738529196227,40.73810905,202.87,202.83,4.298e-05]
[1738529196431,4.9312,202.84,202.83,4.298e-05]
[1738529196732,40.73810905,202.87,202.75,1.6035]
[1738529196934,40.73810905,202.87,202.7,3.1233]
[1738529196935,40.73810905,202.82,202.7,3.1233]
[1738529197829,0.03771863,202.78,202.74,0.03677532]
[1738529198227,4.9335,202.75,202.74,7.532e-05]
[1738529198454,4.9335,202.75,202.61,80.6173772]
[1738529198456,4.22,202.77,202.57,80.54061709]
[1738529198731,4.22,202.77,202.59,1.5015]
[1738529198732,40.73810905,202.74,202.59,1.5015]
[1738529198935,40.73810905,202.74,202.62,4.9363]
[1738529199132,40.73810905,202.74,202.59,1.5015]
[1738529199332,40.73810905,202.74,202.57,80.54061709]
[1738529199333,4.9346,202.7,202.63,4.9362]
[1738529199539,0.037483,202.69,202.64,0.0371318]
[1738529200829,4.22,202.77,202.64,0.0371318]
[1738529201133,4.22,202.77,202.66,4.9353]
[1738529201728,4.22,202.77,202.71,4.9343]
[1738529201936,4.22,202.77,202.64,3.024]
[1738529201937,0.03153994,202.74,202.69,0.03518599]
[1738529202129,4.9323,202.8,202.69,0.03518599]
[1738529202435,40.73810905,202.86,202.64,43.76210905]
[1738529202734,44.95810905,202.9,202.68,40.73810905]
[1738529203234,0.03301293,202.81,202.77,0.03795002]
[1738529203533,44.95810905,202.9,202.68,40.73810905]
[1738529203735,0.03187,202.81,202.77,0.03296321]
[1738529203930,0.03187,202.81,202.72,40.73810905]
[1738529203931,4.22,202.94,202.72,40.73810905]
[1738529204233,4.9301,202.89,202.72,40.73810905]
[1738529205036,0.03586907,202.83,202.78,0.03300067]
[1738529205337,0.03586907,202.83,202.72,40.73810905]
[1738529205537,0.03586907,202.83,202.78,0.03123848]
[1738529205734,0.03586907,202.83,202.78,1.61723848]
[1738529206437,4.96746907,202.83,202.78,1.61723848]
[1738529206641,44.95810905,202.95,202.78,1.61723848]
[1738529207037,44.95810905,202.95,202.78,1.586]
[1738529207234,40.73810905,202.87,202.78,1.586]
[1738529207843,0.03474542,202.85,202.8,0.03729304]
[1738529208139,4.9315,202.83,202.8,0.03729304]
[1738529208437,0.03474542,202.85,202.8,0.03729304]
[1738529210235,40.73810905,202.95,202.8,0.03729304]
[1738529210439,4.9291,202.93,202.86,4.9306]
[1738529210637,4.9291,202.93,202.87,1.5742]
[1738529210942,4.9302,202.88,202.81,4.9318]
[1738529211341,0.031533,202.87,202.82,0.03560054]
[1738529211537,40.73810905,202.94,202.78,1.5153]
[1738529211840,0.03452147,202.87,202.82,0.03218705]
[1738529212034,4.9299,202.9,202.84,80.54061709]
[1738529212232,0.03169561,202.87,202.84,80.54061709]
[1738529212435,40.73810905,202.94,202.84,80.54061709]
[1738529212642,0.03168448,202.88,202.84,80.54061709]
[1738529213337,0.03168448,202.88,202.85,20.47730272]
[1738529214038,4.9304,202.87,202.85,20.47730272]
[1738529214840,0.03168448,202.88,202.83,0.0312565]
[1738529215041,40.73810905,202.98,202.83,0.0312565]
[1738529215352,40.73810905,202.98,202.81,80.54061709]
[1738529215739,4.9288,202.94,202.87,4.9302]
[1738529216034,40.73810905,202.9,202.87,80.54061709]
[1738529216235,4.9309,202.85,202.84,165.24762347]
[1738529216435,45.66900905,202.85,202.84,165.24762347]
[1738529218445,45.66900905,202.85,202.84,156.99622347]
[1738529218737,73.95636419,202.85,202.82,27.32336627]
[1738529218943,4.9314,202.83,202.82,0.033748]
[1738529220545,59.51240598,202.85,202.82,0.033748]
[1738529221743,64.44340598,202.85,202.82,0.033748]
[1738529221944,185.0063599,202.83,202.82,0.033748]
[1738529223846,155.8817599,202.83,202.82,0.033748]
[1738529224042,4.972e-05,202.83,202.77,29.18415656]
[1738529224239,17.9194989,202.84,202.74,1.451]
[1738529224442,10.4440989,202.84,202.74,1.451]
[1738529224638,60.17681796,202.85,202.74,1.451]
[1738529224838,81.31859672,202.86,202.74,1.451]
[1738529224839,81.31859672,202.86,202.81,40.73810905]
[1738529225042,81.31859672,202.86,202.74,1.451]
[1738529225043,67.79799672,202.86,202.85,40.73810905]
[1738529225239,0.03123036,202.86,202.81,40.77301962]
[1738529226749,0.03123036,202.86,202.83,4.9312]
[1738529227080,0.03123036,202.86,202.81,40.77301962]
[1738529228351,3.036e-05,202.86,202.85,45.66900905]
[1738529228950,40.73810905,203.02,202.81,40.77301962]
[1738529229150,40.73810905,203.02,202.81,40.73810905]
[1738529230151,0.0351141,202.94,202.89,40.77364483]
[1738529230346,0.0351141,202.94,202.89,40.73810905]
[1738529230552,4.63e-05,202.94,202.93,40.73810905]
[1738529231755,4.63e-05,202.94,202.93,45.66710905]
[1738529231952,4.63e-05,202.94,202.89,0.03237322]
[1738529231953,4.63e-05,202.94,202.89,40.77048227]
[1738529232256,4.63e-05,202.94,202.9,4.9297]
[1738529232453,4.63e-05,202.94,202.89,0.03237322]
[1738529233559,4.63e-05,202.94,202.93,4.929]
[1738529235164,4.63e-05,202.94,202.92,4.9292]
[1738529235560,4.63e-05,202.94,202.9,4.9297]
[1738529235761,4.63e-05,202.94,202.89,0.03237322]
[1738529236164,4.63e-05,202.94,202.93,40.73810905]
[1738529236359,4.63e-05,202.94,202.93,45.66710905]
[1738529238257,3.0001,203.09,202.93,40.73810905]
[1738529239162,4.9261,203.05,202.98,4.9276]
[1738529239363,0.03691908,203.03,202.99,0.03620318]
[1738529240766,0.03691908,203.03,202.99,4.96360318]
[1738529240968,0.03691908,203.03,202.99,0.03620318]
[1738529241467,4.927,203.02,202.99,0.03620318]
[1738529241666,0.03691908,203.03,202.99,0.03620318]
[1738529242165,4.9272,203.01,202.99,0.03620318]
[1738529242565,0.03691908,203.03,202.99,0.03620318]
[1738529242760,0.03691908,203.03,202.9,25.16045942]
[1738529242963,0.90219863,203.08,202.9,25.16045942]
[1738529243361,3.0001,203.09,202.9,25.16045942]
[1738529243562,3.0001,203.09,202.98,25.16045942]
[1738529244069,0.03397702,203.06,203.01,0.033159]
[1738529244467,0.03397702,203.06,203.05,4.926]
[1738529245467,0.03397702,203.06,203.01,0.033159]
[1738529245867,4.9263,203.04,203.01,0.033159]
[1738529246169,0.03397702,203.06,203.01,0.033159]
[1738529246569,4.9264,203.04,203.01,0.033159]
[1738529246767,0.03397702,203.06,203.01,0.033159]
[1738529248768,4.9262,203.05,203.01,0.033159]
[1738529250473,4.9263,203.04,203.01,0.033159]
[1738529250677,0.03397702,203.06,203.01,0.033159]
[1738529251368,1.5109,203.13,203.05,4.9261]
[1738529251569,4.9224,203.21,203.1,25.16045942]
[1738529251767,8.9561,203.28,203.14,25.16045942]
[1738529251971,4.7561,203.28,203.14,25.16045942]
[1738529252167,4.7561,203.28,203.22,25.16045942]
[1738529252371,1.6133,203.28,203.22,25.16045942]
[1738529252571,3.1428,203.35,203.27,4.9205]
[1738529252774,20.36122314,203.37,203.3,25.16045942]
[1738529253171,20.36122314,203.37,203.34,25.16045942]
[1738529253576,77.9397198,203.39,203.34,25.16045942]
[1738529254480,0.03394709,203.39,203.34,25.16045942]
[1738529254673,0.03394709,203.39,203.31,40.77101971]
[1738529255182,0.03394709,203.39,203.31,0.03205713]
[1738529255771,40.77290967,203.39,203.17,40.73896258]
[1738529255975,40.73896258,203.35,203.13,122.61275537]
[1738529256278,4.9198,203.31,203.29,81.87379279]
[1738529256481,4.9198,203.31,203.29,67.09699279]
[1738529256725,4.9198,203.31,203.29,52.70339279]
[1738529256976,45.65876258,203.31,203.29,44.88559279]
[1738529257182,45.65876258,203.31,203.29,28.47159279]
[1738529257381,4.9198,203.31,203.29,28.47159279]
[1738529257581,0.03573437,203.32,203.28,0.0338374]
[1738529257792,4.9202,203.3,203.28,0.0338374]
[1738529260086,4.9202,203.3,203.28,3.74e-05]
[1738529260281,40.73896258,203.31,203.11,4.9244]
[1738529260485,40.73896258,203.29,203.09,40.73896258]
[1738529260677,4.922,203.22,203.09,40.73896258]
[1738529260882,40.73896258,203.29,203.11,4.9244]
[1738529261180,40.73896258,203.21,203.07,0.3504]
[1738529261381,40.73896258,203.21,203.18,0.03695189]
[1738529261583,40.73896258,203.21,203.07,0.2096]
[1738529261782,4.9252,203.09,203.0,136.58408226]
[1738529262488,40.73896258,203.17,203.0,136.58408226]
[1738529262890,0.03117826,203.07,203.02,0.03225229]
[1738529263185,0.03117826,203.07,203.0,4.9272]
[1738529263186,4.9257,203.07,203.0,4.9272]
[1738529263386,4.9257,203.07,203.02,0.03146124]
[1738529263587,4.96341991,203.07,203.02,0.03146124]
[1738529264090,4.9261,203.05,203.02,0.03146124]
[1738529264985,4.9265,203.04,203.02,0.03146124]
[1738529268995,4.926,203.06,203.02,0.03146124]
[1738529269288,0.03771991,203.07,203.02,0.03146124]
[1738529270987,0.03771991,203.07,203.06,4.9258]
[1738529271190,0.03771991,203.07,203.02,0.03146124]
[1738529271894,4.9266,203.03,203.02,0.03146124]
[1738529273290,4.9266,203.03,202.85,4.2]
[1738529273291,0.03771991,203.07,202.88,40.73896258]
[1738529273595,0.1825,203.12,202.86,82.73548319]
[1738529273596,40.73896258,203.01,202.86,82.73548319]
[1738529273790,40.73896258,202.97,202.86,81.04938319]
[1738529274497,40.73896258,202.93,202.89,0.03622439]
[1738529274695,40.73896258,202.93,202.76,1.6585]
[1738529275498,4.9301,202.89,202.77,4.9328]
[1738529275696,40.73896258,202.93,202.76,1.6585]
[1738529275896,0.0339881,202.86,202.81,0.03244341]
[1738529276298,4.9315,202.83,202.81,0.03244341]
[1738529277098,40.73896258,202.85,202.72,1.6388]
[1738529277099,4.933,202.77,202.72,1.6388]
[1738529277300,40.73896258,202.81,202.7,1.6959]
[1738529277499,40.73896258,202.81,202.69,1.6746]
[1738529277700,40.73896258,202.77,202.67,81.04938319]
[1738529278401,40.73896258,202.77,202.7,0.03606794]
[1738529278402,0.03568247,202.74,202.7,0.03606794]
[1738529279003,4.9342,202.72,202.7,0.03606794]
[1738529279502,0.03568247,202.74,202.7,0.03606794]
[1738529280302,4.9343,202.72,202.7,0.03606794]
[1738529280905,4.9358,202.65,202.63,1.6746]
[1738529281203,40.73896258,202.73,202.59,1.6388]
[1738529281399,40.73896258,202.69,202.55,1.6082]
[1738529281602,4.9374,202.59,202.55,1.6082]
[1738529281903,40.73896258,202.65,202.55,1.6082]
[1738529282340,0.03298876,202.59,202.55,1.64159783]
[1738529282494,4.9357,202.66,202.57,4.9377]
[1738529282700,4.2,202.76,202.58,40.73896258]
[1738529283806,0.03787415,202.69,202.65,0.0337534]
[1738529284699,4.2,202.76,202.65,0.0337534]
[1738529284900,4.9339,202.73,202.67,4.9352]
[1738529285105,44.93896258,202.76,202.63,1.6159]
[1738529285406,44.93896258,202.76,202.55,1.6082]
[1738529285601,44.93896258,202.76,202.58,4.9373]
[1738529285903,0.03404896,202.68,202.63,0.03281601]
[1738529286411,0.03404896,202.68,202.63,0.03247056]
[1738529287208,4.9356,202.66,202.63,0.03247056]
[1738529287405,0.03404896,202.68,202.63,0.03247056]
[1738529288405,4.936,202.64,202.63,0.03247056]
[1738529290744,0.03404896,202.68,202.63,0.03247056]
[1738529291205,40.77301154,202.68,202.47,40.73896258]
[1738529291410,40.73896258,202.64,202.48,1.6762]
[1738529291601,35.27068295,202.64,202.48,1.6762]
[1738529292007,40.73896258,202.72,202.48,1.6762]
[1738529292200,4.937,202.6,202.48,1.6762]
[1738529292407,4.937,202.6,202.58,0.03375655]
[1738529292609,4.937,202.6,202.48,1.6762]
[1738529292809,4.937,202.6,202.57,0.03452352]
[1738529293010,40.73896258,202.68,202.48,1.6762]
[1738529293210,0.03519937,202.61,202.56,0.03313656]
[1738529294414,44.93896258,202.72,202.56,0.03313656]
[1738529294809,4.9357,202.66,202.6,4.9369]
[1738529295014,40.73896258,202.72,202.51,40.73896258]
[1738529295310,40.73896258,202.68,202.49,1.5612]
[1738529295510,40.73896258,202.73,202.51,40.73896258]
[1738529295712,40.73896258,202.73,202.49,1.5612]
[1738529295713,0.03390895,202.61,202.56,0.03660935]
[1738529295914,4.9373,202.59,202.53,4.9386]
[1738529296111,0.03279151,202.61,202.56,0.03129427]
[1738529296312,40.73896258,202.67,202.56,0.03129427]
[1738529296511,0.03463891,202.61,202.56,0.03129427]
[1738529297313,4.9377,202.57,202.56,9.427e-05]
[1738529297705,4.9399,202.48,202.47,81.04938319]
[1738529299019,4.9399,202.48,202.47,73.11158319]
[1738529299233,0.03254995,202.5,202.43,20.41169552]
[1738529299420,40.25145451,202.46,202.38,136.58408226]
[1738529300115,4.9421,202.39,202.38,136.58408226]
[1738529301115,40.73896258,202.4,202.36,0.03715364]
[1738529301354,4.9426,202.37,202.36,0.03715364]
[1738529303019,4.2,202.39,202.31,128.70968226]
[1738529303315,4.9439,202.32,202.31,128.70968226]
[1738529303912,45.68286258,202.32,202.31,121.15448226]
[1738529304316,45.68286258,202.32,202.3,78.37510525]
[1738529304622,0.03462367,202.34,202.3,67.96680525]
[1738529305120,0.03462367,202.34,202.29,0.03506225]
[1738529306721,0.03462367,202.34,202.31,4.944]
[1738529307022,0.03462367,202.34,202.29,0.03506225]
[1738529307219,6.57126637,202.33,202.31,4.944]
[1738529307519,6.57126637,202.33,202.3,1.6149]
[1738529307922,12.03409913,202.34,202.3,1.6149]
[1738529308523,12.07084111,202.34,202.31,4.9441]
[1738529308725,9.51114111,202.34,202.3,1.6149]
[1738529308914,41.83487296,202.35,202.31,40.73896258]
[1738529309121,41.83487296,202.35,202.3,1.6149]
[1738529309418,41.83487296,202.35,202.31,40.73896258]
[1738529309619,15.09587296,202.35,202.33,4.9436]
[1738529309918,71.13110944,202.36,202.31,40.73896258]
[1738529310222,0.03196827,202.36,202.35,29.12222581]
[1738529310414,52.76746744,202.48,202.35,24.17912581]
[1738529310620,52.76746744,202.48,202.39,40.73896258]
[1738529311420,4.9407,202.45,202.39,40.73896258]
[1738529311621,4.9407,202.45,202.41,0.03543184]
[1738529311817,0.03136737,202.46,202.41,0.03543184]
[1738529312721,40.77032995,202.46,202.25,40.73896258]
[1738529312924,1.7026,202.45,202.25,40.73896258]
[1738529313220,40.73896258,202.42,202.25,40.73896258]
[1738529313523,5.8735,202.41,202.25,40.73896258]